fUSD/lending_fUSD_20240619
["ID","MTS","AMOUNT","RATE_DAILY","PERIOD"]
[329866148,1718775045939,-500.0,0.00013698,2]
[329866149,1718775045948,-500.0,0.00013698,2]
[329866150,1718775045958,-902.79,0.00013698,2]
[329866151,1718775045967,-500.0,0.00013698,2]
[329866152,1718775045977,-502.2394445,0.00013698,2]
[329866153,1718775046254,-500.0,0.00013698,2]
[329866154,1718775046278,-500.0,0.00013698,2]
[329866155,1718775046288,-1486.17,0.00013698,2]
[329866156,1718775046298,-1782.62,0.00013698,2]
[329866157,1718775046308,-1541.69,0.00013698,2]
[329866158,1718775046318,-508.39,0.00013698,2]
[329866159,1718775046328,-533.33086909,0.00013698,2]
[329866160,1718775046337,-500.0,0.00013698,2]
[329866161,1718775046347,-500.0,0.00013698,2]
[329866162,1718775046357,-1389.28,0.00013698,2]
[329866163,1718775046367,-500.0,0.00013698,2]
[329866164,1718775046376,-1785.76,0.00013698,2]
[329866165,1718775046386,-500.0,0.00013698,2]
[329866166,1718775046396,-500.0,0.00013698,2]
[329866167,1718775046405,-848.25,0.00013698,2]
[329866168,1718775046415,-973.75,0.00013698,2]
[329866169,1718775046424,-908.9,0.00013698,2]
[329866170,1718775046434,-200.17538762,0.00013698,2]
[329866171,1718775046444,-810.82,0.00013698,2]
[329866172,1718775046454,-500.0,0.00013698,2]
[329866173,1718775046465,-1878.14,0.00013698,2]
[329866174,1718775046475,-500.0,0.00013698,2]
[329866175,1718775046485,-503.94341955,0.00013698,2]
[329866176,1718775046495,-5000.0,0.00013698,2]
[329866177,1718775046504,-538.98545216,0.00013698,2]
[329866178,1718775046514,-500.0,0.00013698,2]
[329866179,1718775046523,-1101.53,0.00013698,2]
[329866180,1718775046536,-500.0,0.00013698,2]
[329866181,1718775046547,-1755.97,0.00013698,2]
[329866182,1718775046556,-1265.84,0.00013698,2]
[329866183,1718775046566,-586.8,0.00013698,2]
[329866184,1718775046577,-500.0,0.00013698,2]
[329866185,1718775046587,-939.1,0.00013698,2]
[329866186,1718775046599,-1249.69,0.00013698,2]
[329866187,1718775046611,-500.0,0.00013698,2]
[329866188,1718775046626,-834.79,0.00013698,2]
[329866189,1718775046636,-1302.07,0.00013698,2]
[329866190,1718775046649,-500.0,0.00013698,2]
[329866191,1718775046658,-500.0,0.00013698,2]
[329866192,1718775046667,-500.0,0.00013698,2]
[329866193,1718775046677,-2355.15,0.00013698,2]
[329866194,1718775046686,-1231.71,0.00013698,2]
[329866195,1718775046698,-968.84,0.00013698,2]
[329866196,1718775046707,-1018.8,0.00013698,2]
[329866197,1718775046717,-1527.41,0.00013698,2]
[329866198,1718775046727,-602.54467029,0.00013698,2]
[329866199,1718775046736,-500.0,0.00013698,2]
[329866200,1718775046746,-520.81,0.00013698,2]
[329866201,1718775046756,-500.0,0.00013698,2]
[329866202,1718775046765,-500.0,0.00013698,2]
[329866203,1718775046775,-619.97,0.00013698,2]
[329866204,1718775046786,-758.6,0.00013698,2]
[329866205,1718775046796,-2046.44,0.00013698,2]
[329866206,1718775046806,-1648.61,0.00013698,2]
[329866207,1718775046815,-846.89,0.00013698,2]
[329866208,1718775046826,-689.84,0.00013698,2]
[329866209,1718775046835,-1176.45,0.00013698,2]
[329866210,1718775046846,-500.0,0.00013698,2]
[329866211,1718775046856,-500.0,0.00013698,2]
[329866212,1718775046866,-629.04,0.00013698,2]
[329866213,1718775046876,-500.0,0.00013698,2]
[329866214,1718775046886,-534.26,0.00013698,2]
[329866215,1718775046896,-500.0,0.00013698,2]
[329866216,1718775046906,-885.05,0.00013698,2]
[329866217,1718775046916,-1498.54,0.00013698,2]
[329866218,1718775046926,-1048.66,0.00013698,2]
[329866219,1718775046936,-500.0,0.00013698,2]
[329866220,1718775046946,-500.0,0.00013698,2]
[329866221,1718775046955,-500.0,0.00013698,2]
[329866222,1718775046965,-500.0,0.00013698,2]
[329866223,1718775046974,-500.0,0.00013698,2]
[329866224,1718775046983,-500.0,0.00013698,2]
[329866225,1718775046993,-500.0,0.00013698,2]
[329866226,1718775047003,-1540.21,0.00013698,2]
[329866227,1718775047012,-1312.31,0.00013698,2]
[329866228,1718775047022,-1337.0,0.00013698,2]
[329866229,1718775047032,-1343.69,0.00013698,2]
[329866230,1718775047041,-500.0,0.00013698,2]
[329866231,1718775047051,-500.0,0.00013698,2]
[329866232,1718775047060,-2567.69,0.00013698,2]
[329866233,1718775047070,-500.0,0.00013698,2]
[329866234,1718775047080,-503.55377794,0.00013698,2]
[329866235,1718775047090,-2223.99,0.00013698,2]
[329866236,1718775047100,-500.0,0.00013698,2]
[329866237,1718775047111,-500.0,0.00013698,2]
[329866238,1718775047121,-2608.54,0.00013698,2]
[329866239,1718775047131,-1260.89,0.00013698,2]
[329866240,1718775047142,-500.0,0.00013698,2]
[329866241,1718775047151,-683.54,0.00013698,2]
[329866242,1718775047162,-500.0,0.00013698,2]
[329866243,1718775047172,-942.07,0.00013698,2]
[329866244,1718775047182,-500.0,0.00013698,2]
[329866245,1718775047192,-500.0,0.00013698,2]
[329866246,1718775047202,-1222.87,0.00013698,2]
[329866247,1718775047212,-500.0,0.00013698,2]
[329866248,1718775047222,-500.0,0.00013698,2]
[329866249,1718775047233,-2147.29,0.00013698,2]
[329866250,1718775047244,-532.83033013,0.00013698,2]
[329866251,1718775047254,-500.0,0.00013698,2]
[329866252,1718775047264,-500.0,0.00013698,2]
[329866253,1718775047276,-500.0,0.00013698,2]
[329866254,1718775047288,-988.45,0.00013698,2]
[329866255,1718775047299,-554.96564919,0.00013698,2]
[329866256,1718775047308,-500.0,0.00013698,2]
[329866257,1718775047318,-500.0,0.00013698,2]
[329866258,1718775047327,-500.0,0.00013698,2]
[329866259,1718775047336,-579.55310588,0.00013698,2]
[329866260,1718775047346,-1700.06,0.00013698,2]
[329866261,1718775047357,-832.65,0.00013698,2]
[329866262,1718775047367,-349.62430606,0.00013698,2]
[329866263,1718775047378,-979.7,0.00013698,2]
[329866264,1718775047388,-501.7400058,0.00013698,2]
[329866265,1718775047398,-1066.73,0.00013698,2]
[329866266,1718775047407,-1461.35,0.00013698,2]
[329866267,1718775047417,-2120.37,0.00013698,2]
[329866268,1718775047427,-500.0,0.00013698,2]
[329866269,1718775047436,-1817.07,0.00013698,2]
[329866270,1718775047446,-500.0,0.00013698,2]
[329866271,1718775047456,-1200.28,0.00013698,2]
[329866272,1718775047466,-782.75,0.00013698,2]
[329866273,1718775047476,-1533.46,0.00013698,2]
[329866274,1718775047486,-506.26649045,0.00013698,2]
[329866275,1718775047495,-500.0,0.00013698,2]
[329866276,1718775047505,-543.39,0.00013698,2]
[329866277,1718775047516,-500.0,0.00013698,2]
[329866278,1718775047526,-500.0,0.00013698,2]
[329866279,1718775047537,-500.0,0.00013698,2]
[329866280,1718775047548,-500.0,0.00013698,2]
[329866281,1718775047558,-1347.52,0.00013698,2]
[329866282,1718775047567,-1722.46,0.00013698,2]
[329866283,1718775047577,-500.0,0.00013698,2]
[329866284,1718775047587,-962.23,0.00013698,2]
[329866285,1718775047598,-502.58778491,0.00013698,2]
[329866286,1718775047611,-1022.75,0.00013698,2]
[329866287,1718775047620,-500.0,0.00013698,2]
[329866288,1718775047630,-1785.01,0.00013698,2]
[329866289,1718775047640,-536.32,0.00013698,2]
[329866290,1718775047650,-500.0,0.00013698,2]
[329866291,1718775047660,-504.86122692,0.00013698,2]
[329866292,1718775047670,-500.0,0.00013698,2]
[329866293,1718775047680,-500.0,0.00013698,2]
[329866294,1718775047689,-500.0,0.00013698,2]
[329866295,1718775047699,-1896.26,0.00013698,2]
[329866296,1718775047709,-423.43918655,0.00013698,2]
[329866297,1718775047719,-940.95,0.00013698,2]
[329866298,1718775047728,-500.0,0.00013698,2]
[329866299,1718775047738,-653.49,0.00013698,2]
[329866300,1718775047748,-2679.48,0.00013698,2]
[329866301,1718775047758,-800.58,0.00013698,2]
[329866302,1718775047768,-500.0,0.00013698,2]
[329866303,1718775047780,-2502.53,0.00013698,2]
[329866304,1718775047790,-508.97,0.00013698,2]
[329866305,1718775047799,-1514.94,0.00013698,2]
[329866306,1718775047808,-500.0,0.00013698,2]
[329866307,1718775047818,-500.0,0.00013698,2]
[329866308,1718775047828,-500.0,0.00013698,2]
[329866309,1718775047838,-504.74735525,0.00013698,2]
[329866310,1718775047849,-500.0,0.00013698,2]
[329866311,1718775047860,-500.0,0.00013698,2]
[329866312,1718775047869,-500.0,0.00013698,2]
[329866313,1718775047879,-1483.59,0.00013698,2]
[329866314,1718775047889,-500.0,0.00013698,2]
[329866315,1718775047899,-500.0,0.00013698,2]
[329866316,1718775047909,-1483.9,0.00013698,2]
[329866317,1718775047919,-500.0,0.00013698,2]
[329866318,1718775047928,-500.0,0.00013698,2]
[329866319,1718775047937,-1917.82,0.00013698,2]
[329866320,1718775047947,-1357.83,0.00013698,2]
[329866321,1718775047957,-1016.56,0.00013698,2]
[329866322,1718775047966,-500.0,0.00013698,2]
[329866323,1718775047976,-500.0,0.00013698,2]
[329866324,1718775047985,-1588.73,0.00013698,2]
[329866325,1718775047995,-549.08,0.00013698,2]
[329866326,1718775048005,-500.0,0.00013698,2]
[329866327,1718775048016,-500.0,0.00013698,2]
[329866328,1718775048025,-1608.53,0.00013698,2]
[329866329,1718775048036,-500.0,0.00013698,2]
[329866330,1718775048045,-500.0,0.00013698,2]
[329866331,1718775048055,-500.0,0.00013698,2]
[329866332,1718775048065,-500.0,0.00013698,2]
[329866333,1718775048074,-500.0,0.00013698,2]
[329866334,1718775048084,-500.0,0.00013698,2]
[329866335,1718775048094,-500.0,0.00013698,2]
[329866336,1718775048104,-515.86,0.00013698,2]
[329866337,1718775048114,-500.0,0.00013698,2]
[329866338,1718775048124,-500.0,0.00013698,2]
[329866339,1718775048135,-500.0,0.00013698,2]
[329866340,1718775048145,-164.2,0.00013698,2]
[329866341,1718775048154,-605.17,0.00013698,2]
[329866342,1718775048164,-500.0,0.00013698,2]
[329866343,1718775048174,-500.0,0.00013698,2]
[329866344,1718775048183,-1083.21,0.00013698,2]
[329866345,1718775048193,-1929.68,0.00013698,2]
[329866346,1718775048202,-500.0,0.00013698,2]
[329866347,1718775048212,-2120.41,0.00013698,2]
[329866348,1718775048222,-500.0,0.00013698,2]
[329866349,1718775048231,-500.0,0.00013698,2]
[329866350,1718775048241,-229.32213326,0.00013698,2]
[329866351,1718775048251,-500.0,0.00013698,2]
[329866352,1718775048261,-1375.45,0.00013698,2]
[329866353,1718775048272,-703.85,0.00013698,2]
[329866354,1718775048284,-500.0,0.00013698,2]
[329866355,1718775048293,-2127.11,0.00013698,2]
[329866356,1718775048302,-1218.89,0.00013698,2]
[329866357,1718775048312,-500.0,0.00013698,2]
[329866358,1718775048321,-500.0,0.00013698,2]
[329866359,1718775048332,-538.44,0.00013698,2]
[329866360,1718775048343,-500.0,0.00013698,2]
[329866361,1718775048354,-500.0,0.00013698,2]
[329866362,1718775048364,-500.0,0.00013698,2]
[329866363,1718775048374,-583.15826002,0.00013698,2]
[329866364,1718775048383,-500.0,0.00013698,2]
[329866365,1718775048393,-500.0,0.00013698,2]
[329866366,1718775048403,-500.0,0.00013698,2]
[329866367,1718775048412,-2579.88,0.00013698,2]
[329866368,1718775048421,-518.78,0.00013698,2]
[329866369,1718775048430,-500.0,0.00013698,2]
[329866370,1718775048440,-1197.32,0.00013698,2]
[329866371,1718775048449,-965.11,0.00013698,2]
[329866372,1718775048459,-500.0,0.00013698,2]
[329866373,1718775048468,-500.0,0.00013698,2]
[329866374,1718775048477,-500.0,0.00013698,2]
[329866375,1718775048486,-500.0,0.00013698,2]
[329866376,1718775048496,-1440.2,0.00013698,2]
[329866377,1718775048506,-500.0,0.00013698,2]
[329866378,1718775048516,-1863.37,0.00013698,2]
[329866379,1718775048525,-500.0,0.00013698,2]
[329866380,1718775048537,-500.0,0.00013698,2]
[329866381,1718775048546,-500.0,0.00013698,2]
[329866382,1718775048555,-500.0,0.00013698,2]
[329866383,1718775048565,-500.0,0.00013698,2]
[329866384,1718775048575,-500.0,0.00013698,2]
[329866385,1718775048584,-1162.6,0.00013698,2]
[329866386,1718775048595,-523.998346,0.00013698,2]
[329866387,1718775048604,-505.76,0.00013698,2]
[329866388,1718775048619,-526.03958121,0.00013698,2]
[329866389,1718775048628,-576.07,0.00013698,2]
[329866390,1718775048640,-962.82,0.00013698,2]
[329866391,1718775048650,-500.0,0.00013698,2]
[329866392,1718775048660,-1177.77,0.00013698,2]
[329866393,1718775048670,-500.0,0.00013698,2]
[329866394,1718775048680,-500.0,0.00013698,2]
[329866395,1718775048691,-500.0,0.00013698,2]
[329866396,1718775048701,-654.51,0.00013698,2]
[329866397,1718775048711,-500.0,0.00013698,2]
[329866398,1718775048798,-500.0,0.00013698,2]
[329866399,1718775048808,-5338.9,0.00013698,2]
[329866400,1718775048818,-1006.77,0.00013698,2]
[329866401,1718775048828,-575.16,0.00013698,2]
[329866404,1718775048837,-625.77,0.00013698,2]
[329866405,1718775048847,-788.54,0.00013698,2]
[329866408,1718775048857,-500.0,0.00013698,2]
[329866411,1718775048866,-625.77,0.00013698,2]
[329866413,1718775048875,-625.77,0.00013698,2]
[329866414,1718775048885,-151.0,0.00013698,2]
[329866415,1718775048894,-625.77,0.00013698,2]
[329866416,1718775048905,-151.0,0.00013698,2]
[329866417,1718775048914,-625.77,0.00013698,2]
[329866418,1718775048924,-625.77,0.00013698,2]
[329866419,1718775048933,-625.77,0.00013698,2]
[329866420,1718775048943,-625.77,0.00013698,2]
[329866421,1718775048952,-625.77,0.00013698,2]
[329866422,1718775048961,-1109.47,0.00013698,2]
[329866423,1718775048971,-625.77,0.00013698,2]
[329866424,1718775048980,-625.77,0.00013698,2]
[329866425,1718775048990,-625.77,0.00013698,2]
[329866426,1718775048999,-625.77,0.00013698,2]
[329866427,1718775049009,-625.77,0.00013698,2]
[329866428,1718775049018,-1494.79,0.00013698,2]
[329866429,1718775049028,-2854.41,0.00013698,2]
[329866430,1718775049039,-589.22,0.00013698,2]
[329866431,1718775049048,-13553.92,0.00013698,2]
[329866432,1718775049057,-501.7984642,0.00013698,2]
[329866433,1718775049066,-500.0,0.00013698,2]
[329866434,1718775049075,-500.0,0.00013698,2]
[329866435,1718775049084,-4819.69,0.00013698,2]
[329866436,1718775049094,-5046.77,0.00013698,2]
[329866437,1718775049103,-1940.33,0.00013698,2]
[329866438,1718775049113,-1533.99,0.00013698,2]
[329866439,1718775049122,-500.0,0.00013698,2]
[329866440,1718775049132,-808.06,0.00013698,2]
[329866441,1718775049142,-3304.74,0.00013698,2]
[329866442,1718775049152,-805.23,0.00013698,2]
[329866443,1718775049161,-1200.65,0.00013698,2]
[329866444,1718775049171,-1268.96,0.00013698,2]
[329866445,1718775049180,-1747.05,0.00013698,2]
[329866446,1718775049191,-500.0,0.00013698,2]
[329866447,1718775049200,-1073.9,0.00013698,2]
[329866448,1718775049210,-1436.14,0.00013698,2]
[329866449,1718775049219,-500.0,0.00013698,2]
[329866450,1718775049228,-1489.87,0.00013698,2]
[329866451,1718775049238,-500.0,0.00013698,2]
[329866452,1718775049247,-502.29297241,0.00013698,2]
[329866453,1718775049256,-853.67,0.00013698,2]
[329866454,1718775049265,-1913.54,0.00013698,2]
[329866455,1718775049275,-500.0,0.00013698,2]
[329866456,1718775049285,-3072.83,0.00013698,2]
[329866457,1718775049294,-45169.42,0.00013698,2]
[329866458,1718775049303,-2348.83,0.00013698,2]
[329866459,1718775049313,-19047.6,0.00013698,2]
[329866460,1718775049322,-151.0,0.00013698,2]
[329866461,1718775049331,-151.0,0.00013698,2]
[329866462,1718775049340,-635.73,0.00013698,2]
[329866463,1718775049349,-1437.77,0.00013698,2]
[329866464,1718775049359,-500.0,0.00013698,2]
[329866465,1718775049368,-500.0,0.00013698,2]
[329866466,1718775049377,-659.56,0.00013698,2]
[329866467,1718775049387,-500.0,0.00013698,2]
[329866468,1718775049396,-9625.95,0.00013698,2]
[329866469,1718775049405,-1366.97,0.00013698,2]
[329866470,1718775049414,-500.0,0.00013698,2]
[329866472,1718775049423,-500.0,0.00013698,2]
[329866473,1718775049432,-1546.24,0.00013698,2]
[329866474,1718775049441,-727.27,0.00013698,2]
[329866475,1718775049451,-1475.4,0.00013698,2]
[329866476,1718775049460,-571.09,0.00013698,2]
[329866477,1718775049469,-500.0,0.00013698,2]
[329866478,1718775049478,-21475.35,0.00013698,2]
[329866479,1718775049487,-500.0,0.00013698,2]
[329866480,1718775049496,-910.63,0.00013698,2]
[329866481,1718775049505,-500.0,0.00013698,2]
[329866482,1718775049515,-4533.49,0.00013698,2]
[329866483,1718775049524,-500.0,0.00013698,2]
[329866484,1718775049534,-46725.71,0.00013698,2]
[329866485,1718775049543,-1925.19,0.00013698,2]
[329866486,1718775049552,-2596.39,0.00013698,2]
[329866487,1718775049560,-500.0,0.00013698,2]
[329866488,1718775049569,-1644.15,0.00013698,2]
[329866489,1718775049579,-500.0,0.00013698,2]
[329866490,1718775049588,-500.0,0.00013698,2]
[329866491,1718775049600,-608.93,0.00013698,2]
[329866492,1718775049610,-1114.26,0.00013698,2]
[329866493,1718775049621,-500.0,0.00013698,2]
[329866494,1718775049630,-500.0,0.00013698,2]
[329866495,1718775049639,-500.0,0.00013698,2]
[329866496,1718775049650,-6411.15,0.00013698,2]
[329866497,1718775049659,-4249.78,0.00013698,2]
[329866498,1718775049668,-2051.19,0.00013698,2]
[329866499,1718775049678,-500.0,0.00013698,2]
[329866500,1718775049688,-2365.83,0.00013698,2]
[329866501,1718775049698,-500.0,0.00013698,2]
[329866502,1718775049707,-500.0,0.00013698,2]
[329866503,1718775049716,-631.46,0.00013698,2]
[329866504,1718775049725,-2298.15,0.00013698,2]
[329866505,1718775049734,-500.0,0.00013698,2]
[329866506,1718775049743,-500.0,0.00013698,2]
[329866507,1718775049752,-1385.72,0.00013698,2]
[329866508,1718775049762,-14572.98,0.00013698,2]
[329866509,1718775049771,-501.60059917,0.00013698,2]
[329866510,1718775049781,-500.0,0.00013698,2]
[329866511,1718775049791,-500.0,0.00013698,2]
[329866512,1718775049800,-500.0,0.00013698,2]
[329866513,1718775049809,-8831.3,0.00013698,2]
[329866514,1718775049819,-2055.81,0.00013698,2]
[329866515,1718775049828,-500.0,0.00013698,2]
[329866516,1718775049841,-1474.94,0.00013698,2]
[329866517,1718775049850,-4260.27,0.00013698,2]
[329866518,1718775049862,-1767.49,0.00013698,2]
[329866519,1718775049871,-593.22161432,0.00013698,2]
[329866520,1718775049882,-500.0,0.00013698,2]
[329866521,1718775049891,-1647.18,0.00013698,2]
[329866522,1718775049900,-500.0,0.00013698,2]
[329866523,1718775049910,-1185.72,0.00013698,2]
[329866524,1718775049919,-2671.9,0.00013698,2]
[329866525,1718775049929,-3526.79,0.00013698,2]
[329866526,1718775049938,-500.0,0.00013698,2]
[329866527,1718775049947,-500.0,0.00013698,2]
[329866528,1718775049956,-1802.87,0.00013698,2]
[329866529,1718775049965,-1193.14,0.00013698,2]
[329866530,1718775049974,-1392.39,0.00013698,2]
[329866531,1718775049983,-500.86817258,0.00013698,2]
[329866532,1718775049993,-151.0,0.00013698,2]
[329866533,1718775050002,-151.0,0.00013698,2]
[329866534,1718775050011,-1189.12,0.00013698,2]
[329866535,1718775050020,-788.56,0.00013698,2]
[329866536,1718775050031,-500.0,0.00013698,2]
[329866537,1718775050041,-500.0,0.00013698,2]
[329866538,1718775050050,-500.0,0.00013698,2]
[329866539,1718775050059,-500.0,0.00013698,2]
[329866540,1718775050068,-527.07,0.00013698,2]
[329866541,1718775050077,-500.0,0.00013698,2]
[329866542,1718775050086,-500.0,0.00013698,2]
[329866543,1718775050095,-1056.9,0.00013698,2]
[329866544,1718775050104,-500.0,0.00013698,2]
[329866545,1718775050114,-173.39902045,0.00013698,2]
[329866546,1718775050123,-916.58,0.00013698,2]
[329866547,1718775050132,-500.0,0.00013698,2]
[329866548,1718775050141,-500.0,0.00013698,2]
[329866549,1718775050151,-500.0,0.00013698,2]
[329866550,1718775050160,-1783.54,0.00013698,2]
[329866551,1718775050169,-2224.11,0.00013698,2]
[329866552,1718775050178,-5341.18,0.00013698,2]
[329866553,1718775050187,-681.39,0.00013698,2]
[329866554,1718775050197,-500.0,0.00013698,2]
[329866555,1718775050206,-500.0,0.00013698,2]
[329866556,1718775050215,-500.0,0.00013698,2]
[329866557,1718775050225,-930.09,0.00013698,2]
[329866558,1718775050233,-500.0,0.00013698,2]
[329866559,1718775050243,-500.0,0.00013698,2]
[329866560,1718775050251,-6071.67,0.00013698,2]
[329866561,1718775050260,-729.72,0.00013698,2]
[329866562,1718775050269,-505.87052207,0.00013698,2]
[329866563,1718775050278,-5763.32,0.00013698,2]
[329866564,1718775050288,-34500.02,0.00013698,2]
[329866565,1718775050297,-1018.07,0.00013698,2]
[329866566,1718775050306,-5755.05,0.00013698,2]
[329866567,1718775050315,-500.0,0.00013698,2]
[329866568,1718775050324,-1230.0,0.00013698,2]
[329866569,1718775050333,-2178.96,0.00013698,2]
[329866570,1718775050342,-2679.62,0.00013698,2]
[329866571,1718775050351,-587.65,0.00013698,2]
[329866572,1718775050360,-1704.48,0.00013698,2]
[329866573,1718775050370,-464.54671758,0.00013698,2]
[329866574,1718775050379,-500.0,0.00013698,2]
[329866575,1718775050388,-500.0,0.00013698,2]
[329866576,1718775050398,-500.0,0.00013698,2]
[329866577,1718775050407,-1732.46,0.00013698,2]
[329866578,1718775050416,-500.0,0.00013698,2]
[329866579,1718775050425,-500.0,0.00013698,2]
[329866580,1718775050435,-500.0,0.00013698,2]
[329866581,1718775050444,-3559.45,0.00013698,2]
[329866582,1718775050453,-2685.85,0.00013698,2]
[329866583,1718775050462,-500.0,0.00013698,2]
[329866584,1718775050471,-2504.6,0.00013698,2]
[329866585,1718775050480,-1069.31,0.00013698,2]
[329866586,1718775050489,-500.0,0.00013698,2]
[329866587,1718775050498,-2050.02,0.00013698,2]
[329866588,1718775050508,-2536.63,0.00013698,2]
[329866589,1718775050518,-557.39,0.00013698,2]
[329866590,1718775050527,-502.37428885,0.00013698,2]
[329866591,1718775050538,-500.0,0.00013698,2]
[329866592,1718775050547,-500.0,0.00013698,2]
[329866593,1718775050556,-500.0,0.00013698,2]
[329866594,1718775050565,-500.0,0.00013698,2]
[329866595,1718775050575,-500.0,0.00013698,2]
[329866596,1718775050584,-1505.89,0.00013698,2]
[329866597,1718775050594,-552.22,0.00013698,2]
[329866598,1718775050604,-1572.55,0.00013698,2]
[329866599,1718775050619,-841.24,0.00013698,2]
[329866600,1718775050639,-500.0,0.00013698,2]
[329866601,1718775050649,-1353.04,0.00013698,2]
[329866602,1718775050659,-509.47295118,0.00013698,2]
[329866603,1718775050668,-3420.04,0.00013698,2]
[329866604,1718775050677,-3598.36,0.00013698,2]
[329866605,1718775050687,-811.96,0.00013698,2]
[329866606,1718775050696,-1704.32,0.00013698,2]
[329866607,1718775050706,-658.32,0.00013698,2]
[329866608,1718775050715,-2402.57,0.00013698,2]
[329866609,1718775050724,-500.0,0.00013698,2]
[329866610,1718775050738,-3749.74,0.00013698,2]
[329866611,1718775050747,-772.29,0.00013698,2]
[329866612,1718775050756,-500.0,0.00013698,2]
[329866613,1718775050765,-4458.73,0.00013698,2]
[329866614,1718775050774,-500.0,0.00013698,2]
[329866615,1718775050784,-9811.0,0.00013698,2]
[329866616,1718775050793,-500.0,0.00013698,2]
[329866617,1718775050802,-829.27,0.00013698,2]
[329866618,1718775050811,-294.291867,0.00013698,2]
[329866619,1718775050820,-1635.72,0.00013698,2]
[329866620,1718775050829,-1255.13,0.00013698,2]
[329866621,1718775050838,-1252.01,0.00013698,2]
[329866622,1718775050847,-1398.85,0.00013698,2]
[329866623,1718775050856,-151.0,0.00013698,2]
[329866624,1718775050870,-500.0,0.00013698,2]
[329866625,1718775050880,-151.0,0.00013698,2]
[329866626,1718775050890,-598.41,0.00013698,2]
[329866627,1718775050899,-1551.43,0.00013698,2]
[329866628,1718775050909,-500.0,0.00013698,2]
[329866629,1718775050919,-505.91971642,0.00013698,2]
[329866630,1718775050928,-500.0,0.00013698,2]
[329866631,1718775050939,-2576.77,0.00013698,2]
[329866632,1718775050949,-3381.53,0.00013698,2]
[329866633,1718775050959,-653.29936,0.00013698,2]
[329866634,1718775050969,-2448.53,0.00013698,2]
[329866635,1718775050978,-2448.53,0.00013698,2]
[329866636,1718775050988,-684.75,0.00013698,2]
[329866637,1718775050997,-653.29936,0.00013698,2]
[329866638,1718775051006,-2448.53,0.00013698,2]
[329866639,1718775051016,-2448.53,0.00013698,2]
[329866640,1718775051025,-2448.53,0.00013698,2]
[329866641,1718775051037,-2448.53,0.00013698,2]
[329866642,1718775051047,-2448.53,0.00013698,2]
[329866643,1718775051057,-2448.53,0.00013698,2]
[329866644,1718775051066,-516.93930049,0.00013698,2]
[329866645,1718775051075,-882.61,0.00013698,2]
[329866646,1718775051086,-524.50969337,0.00013698,2]
[329866647,1718775051095,-1627.76,0.00013698,2]
[329866648,1718775051105,-1707.49,0.00013698,2]
[329866649,1718775051115,-653.29936,0.00013698,2]
[329866650,1718775051126,-653.29936,0.00013698,2]
[329866651,1718775051135,-500.0,0.00013698,2]
[329866652,1718775051145,-1071.06,0.00013698,2]
[329866653,1718775051155,-596.21,0.00013698,2]
[329866654,1718775051164,-596.21,0.00013698,2]
[329866655,1718775051174,-596.21,0.00013698,2]